bitfinex/quotes_ETHUSD_20250112
["timestamp","ask_amount","ask_price","bid_price","bid_amount"]
[1736642240525,0.214,3289.4,3289.1,0.10525936]
[1736642241229,0.214,3289.4,3288.9,5.37]
[1736642241525,0.214,3289.4,3289.2,0.10518738]
[1736642241721,0.214,3289.4,3288.9,5.37]
[1736642241886,0.214,3289.5,3289.3,0.10483232]
[1736642242086,0.214,3289.5,3288.9,5.37]
[1736642242286,0.214,3289.5,3289.4,0.10476035]
[1736642243004,0.214,3289.5,3288.9,5.37]
[1736642243203,0.214,3289.5,3289.0,0.10504826]
[1736642243593,0.8331,3289.3,3289.0,0.10504826]
[1736642244521,2.96123,3289.3,3289.0,0.10504826]
[1736642244824,2.96123,3289.3,3288.9,5.37]
[1736642245184,2.96123,3289.3,3289.0,0.10503942]
[1736642245415,3.53268711,3289.3,3289.0,0.10503942]
[1736642246541,1.40455711,3289.3,3289.0,0.10503942]
[1736642246716,5.46298111,3289.1,3289.0,0.10503942]
[1736642247294,2.1284,3288.9,3288.1,5.385]
[1736642247606,2.1283,3289.0,3288.2,0.10561546]
[1736642247814,2.12843,3288.9,3288.2,0.10561546]
[1736642248217,2.53934111,3288.8,3288.2,0.10561546]
[1736642248406,0.214,3288.7,3288.2,0.10561546]
[1736642249145,0.214,3288.7,3288.2,0.13602375]
[1736642250233,0.214,3288.7,3288.2,0.10561546]
[1736642253947,0.214,3288.7,3288.2,0.13602376]
[1736642254318,3.33474111,3289.4,3288.3,0.7978]
[1736642254534,0.214,3288.9,3288.6,0.8214]
[1736642254851,0.214,3289.1,3288.7,0.1056889]
[1736642256160,0.214,3289.3,3288.9,0.8214]
[1736642256350,0.214,3289.3,3289.0,0.03040035]
[1736642256660,0.214,3289.3,3289.0,0.10535348]
[1736642257879,0.8029,3289.2,3289.0,0.10535348]
[1736642258022,3.28673411,3289.2,3289.0,0.10535348]
[1736642258219,2.53934111,3289.1,3288.5,2.53797005]
[1736642258461,2.53934111,3289.1,3288.6,0.10553974]
[1736642258638,2.12837,3288.9,3288.6,0.10553974]
[1736642258832,2.12837,3288.9,3288.3,0.8214]
[1736642259068,2.12837,3288.9,3288.7,0.10563582]
[1736642259245,0.212837,3288.8,3288.3,0.8214]
[1736642259422,2.12837,3288.9,3288.8,0.10556382]
[1736642259631,0.7659,3288.8,3288.0,6.1503]
[1736642259828,2.12855,3288.7,3288.0,6.1503]
[1736642260027,2.12855,3288.7,3288.1,0.10607232]
[1736642260228,2.53934111,3288.5,3288.1,0.10607232]
[1736642260451,0.7659,3288.3,3288.1,0.10607232]
[1736642262471,2.53934111,3288.2,3288.1,0.10607232]
[1736642262767,2.53934111,3288.2,3287.6,6.1503]
[1736642262768,4.66816111,3288.2,3287.6,5.37]
[1736642262924,4.66816111,3288.2,3288.1,0.10625815]
[1736642263129,5.25906063,3288.2,3287.6,5.37]
[1736642263328,5.25906063,3288.2,3288.1,0.10625815]
[1736642263554,5.25906063,3288.2,3287.6,5.37]
[1736642264046,5.25906063,3288.2,3287.7,0.10654629]
[1736642264635,5.25906063,3288.2,3287.4,0.7717]
[1736642264836,5.25906063,3288.2,3287.8,0.10647425]
[1736642265060,0.60249606,3288.1,3287.4,0.7717]
[1736642265231,4.66816111,3288.2,3287.9,0.10640221]
[1736642265581,4.66816111,3288.2,3287.4,0.7717]
[1736642265745,4.66816111,3288.2,3288.0,0.10633018]
[1736642265946,4.66816111,3288.2,3287.4,0.7717]
[1736642266148,4.66816111,3288.2,3288.1,0.10625815]
[1736642266389,3.13024063,3288.2,3287.4,0.80211599]
[1736642266673,2.53934111,3288.2,3287.5,0.10669039]
[1736642268437,4.66821111,3288.2,3287.5,0.10669039]
[1736642268672,2.1289,3288.1,3287.5,0.10669039]
[1736642269176,2.53934111,3288.2,3287.5,0.10669039]
[1736642269953,2.53934111,3287.6,3287.5,0.10669039]
[1736642270178,3.09217522,3287.6,3287.5,0.10669039]
[1736642270472,2.76034111,3287.6,3287.5,0.10719043]
[1736642270679,2.76034111,3287.6,3287.3,5.37]
[1736642270978,2.76034111,3287.6,3286.9,5.37]
[1736642271160,2.76034111,3287.6,3287.4,0.10727576]
[1736642271365,2.76034111,3287.6,3286.9,5.37]
[1736642271574,2.76034111,3287.6,3287.5,0.10720371]
[1736642271740,3.32719022,3287.6,3286.9,5.37]
[1736642271938,3.32719022,3287.6,3287.5,0.10720371]
[1736642272143,3.32719022,3287.6,3286.9,5.37]
[1736642272369,2.76034111,3287.6,3286.9,5.37]
[1736642272544,2.76034111,3287.6,3287.0,0.10756403]
[1736642281291,0.792,3287.4,3287.0,0.10756403]
[1736642285779,2.53934111,3287.3,3287.0,0.10756403]
[1736642286512,2.53934111,3287.3,3287.1,0.10795676]
[1736642286717,2.53934111,3287.3,3286.5,5.37]
[1736642286718,3.08541322,3287.3,3286.5,5.37]
[1736642287009,0.792,3286.9,3286.5,5.37]
[1736642288166,0.792,3286.9,3286.2,0.7769]
[1736642288396,0.22,3286.8,3286.2,0.7769]
[1736642289337,0.792,3286.6,3286.1,5.37]
[1736642289537,2.92186,3286.6,3286.1,5.37]
[1736642289698,1.012,3286.8,3286.1,5.37]
[1736642289889,0.22,3286.8,3286.2,0.7769]
[1736642290234,0.22,3286.8,3286.2,2.93742756]
[1736642291038,0.22,3286.8,3286.2,2.907]
[1736642291932,0.22,3286.8,3286.3,0.10908259]
[1736642296871,0.22,3286.8,3286.4,0.03042651]
[1736642297074,0.22,3286.9,3286.5,0.7912]
[1736642297280,0.8312,3287.6,3286.8,2.12972]
[1736642297447,0.22,3287.5,3286.9,0.24489197]
[1736642297647,0.8312,3287.6,3287.0,2.23815024]
[1736642297975,0.22,3287.5,3287.1,0.7912]
[1736642298272,3.37054111,3288.0,3287.2,0.10841609]
[1736642298273,0.22,3287.6,3287.2,0.10841609]
[1736642303666,0.7972,3287.5,3287.2,0.10841609]
[1736642303875,0.7972,3287.5,3286.9,0.7702]
[1736642306131,0.22,3287.6,3287.0,0.03041948]
[1736642306630,0.22,3287.6,3286.9,0.7702]
[1736642306843,0.22,3287.6,3287.0,0.10803327]
[1736642310851,5.46529111,3288.3,3287.1,0.7927]
[1736642311049,5.46529111,3288.3,3287.3,0.7777]
[1736642311050,0.22,3288.2,3287.3,0.7777]
[1736642311208,0.22,3288.2,3287.5,0.7702]
[1736642311408,0.22,3288.2,3287.6,0.03041377]
[1736642311622,0.22,3288.2,3287.6,0.13807665]
[1736642312547,0.22,3288.4,3287.9,0.015]
[1736642312748,0.22,3288.4,3287.9,2.144]
[1736642312950,0.22,3288.4,3288.0,0.10690103]
[1736642315341,0.22,3288.4,3287.8,6.1402]
[1736642315861,0.22,3288.4,3287.9,0.1069111]
[1736642316217,2.53934111,3288.3,3287.9,0.1069111]
[1736642316431,2.92244,3288.2,3287.9,0.1069111]
[1736642317459,2.53934111,3288.0,3287.9,0.1069111]
[1736642317759,2.53934111,3288.0,3287.3,0.8034]
[1736642317760,2.92242,3288.2,3287.4,0.03041592]
[1736642318151,0.7936,3288.2,3287.5,0.10719928]
[1736642318353,0.33329411,3288.1,3287.3,0.8034]
[1736642318552,2.46220411,3288.1,3287.6,0.10712722]
[1736642318867,2.53934111,3288.3,3287.7,0.10705518]
[1736642319067,2.53934111,3288.3,3287.6,0.03041341]
[1736642319270,2.53934111,3288.3,3287.7,0.10705518]
[1736642319996,2.53934111,3288.3,3287.5,2.93266]
[1736642320435,2.53934111,3288.3,3287.6,0.10712722]
[1736642321555,2.89463522,3288.3,3287.6,0.10712722]
[1736642321863,2.12888,3288.2,3287.6,0.10712722]
[1736642326135,2.89463522,3288.3,3287.6,0.10712722]
[1736642326331,0.219,3288.2,3287.7,0.8302]
[1736642326560,0.219,3288.2,3287.7,3.09693183]
[1736642327082,0.219,3288.2,3287.7,0.93737913]
[1736642327435,0.9766,3288.2,3287.7,0.93737913]
[1736642327640,0.9766,3288.2,3287.7,0.10717913]
[1736642327641,3.10547,3288.2,3287.7,0.10717913]
[1736642327840,0.56447111,3288.1,3287.5,0.8302]
[1736642328049,0.9766,3288.2,3287.5,0.86061524]
[1736642328454,0.9766,3288.2,3287.5,0.8302]
[1736642330400,3.10542,3288.2,3287.5,0.8302]
[1736642333619,2.12889,3288.1,3287.5,0.8302]
[1736642334514,2.12896,3288.0,3287.5,0.8302]
[1736642334668,0.212896,3287.9,3287.5,0.8302]
[1736642336601,3.10543,3288.2,3287.5,0.8302]
[1736642336980,3.10543,3288.2,3287.6,0.10725116]
[1736642339320,0.219,3288.1,3287.6,0.10725116]
[1736642340124,0.219,3288.1,3287.7,0.8217]
[1736642340286,0.219,3288.1,3287.7,0.92894108]
[1736642343794,5.53934111,3288.6,3287.8,0.0304144]
[1736642344034,0.63538411,3288.6,3288.0,0.8217]
[1736642344353,0.219,3288.5,3288.1,0.10690867]
[1736642349291,2.34765,3288.5,3288.1,0.10690867]
[1736642350635,0.219,3288.5,3288.1,0.10690867]
[1736642352427,2.34765,3288.5,3288.1,0.10690867]
[1736642353742,2.1287,3288.4,3288.1,0.10690867]
[1736642353946,2.69885411,3288.4,3287.8,0.8217]
[1736642354151,2.1287,3288.4,3288.2,0.10643388]
[1736642354351,2.1287,3288.4,3287.8,0.8217]
[1736642354666,2.1287,3288.4,3288.3,0.10640612]
[1736642354812,2.1287,3288.4,3287.8,0.8217]
[1736642355150,2.1287,3288.4,3287.9,0.10672078]
[1736642355848,2.53934111,3288.3,3287.9,0.10672078]
[1736642356058,2.12889,3288.1,3287.9,0.10672078]
[1736642356257,2.12889,3288.1,3287.6,0.7898]
[1736642356575,2.12896,3288.0,3287.6,0.7898]
[1736642360231,4.66830111,3288.0,3287.4,6.1797]
[1736642360427,2.12904,3287.9,3287.4,6.1797]
[1736642360836,2.12904,3287.9,3287.4,0.8097]
[1736642361762,2.82958711,3288.0,3287.4,0.8097]
[1736642362066,2.53934111,3288.0,3287.4,0.8097]
[1736642362434,4.66830111,3288.0,3287.4,0.8097]
[1736642362631,4.66830111,3288.0,3287.1,6.1819]
[1736642362632,2.1291,3287.8,3287.1,6.1819]
[1736642362956,0.217,3287.7,3287.1,6.1819]
[1736642366820,0.217,3287.7,3287.2,0.10761023]
[1736642368754,0.8009,3287.6,3287.2,0.10761023]
[1736642369369,0.8009,3287.6,3286.9,6.1819]
[1736642369578,0.8009,3287.6,3287.3,0.10763995]
[1736642369886,0.8009,3287.6,3286.9,6.1819]
[1736642370081,0.8009,3287.6,3287.4,0.10760774]
[1736642370377,0.8009,3287.6,3287.5,0.10753568]
[1736642370677,0.8009,3287.6,3286.9,6.1819]
[1736642370886,0.8009,3287.6,3287.5,0.10754011]
[1736642371088,0.8009,3287.6,3286.9,6.1819]
[1736642371256,0.8009,3287.6,3287.5,0.10754011]
[1736642371458,0.8009,3287.6,3286.9,6.1819]
[1736642372018,0.8009,3287.6,3287.0,0.107927]
[1736642377504,5.31,3288.3,3287.3,2.1294]
[1736642377505,0.7744,3287.9,3287.3,2.1294]
[1736642377667,0.7744,3288.2,3287.4,0.8276]
[1736642377849,0.7744,3288.5,3287.8,0.8276]
[1736642378201,0.215,3288.4,3288.0,2.12895]
[1736642378396,0.215,3288.4,3288.0,2.15936027]
[1736642378698,0.215,3288.4,3288.1,3.06357787]
[1736642378990,5.118,3289.1,3288.2,0.015]
[1736642379192,0.215,3288.7,3288.3,0.8580061]
[1736642379396,0.215,3288.7,3288.5,0.8276]
[1736642379555,0.215,3288.7,3288.6,2.12856]
[1736642379893,0.215,3288.7,3288.6,2.23472798]
[1736642380056,0.215,3289.1,3288.6,2.23472798]
[1736642380453,0.215,3289.1,3288.7,2.12849]
[1736642380873,0.215,3289.1,3288.8,0.10602397]
[1736642381198,0.215,3289.1,3288.7,2.12849]
[1736642381490,0.215,3289.1,3288.9,0.10595198]
[1736642381682,0.215,3289.1,3289.0,0.10587999]
[1736642382004,0.215,3289.1,3288.6,0.015]
[1736642382297,0.215,3289.1,3288.6,0.312122]
[1736642382695,0.215,3289.1,3288.7,0.10609597]
[1736642383505,0.215,3289.1,3288.5,0.8276]
[1736642383715,0.215,3289.1,3288.6,0.10586269]
[1736642384086,0.7657,3289.0,3288.6,0.10586269]
[1736642384871,0.215,3289.1,3288.6,0.10586269]
[1736642388501,0.7657,3289.2,3288.6,0.10586269]
[1736642388719,0.215,3289.0,3288.6,0.10586269]
[1736642392302,2.12819,3289.2,3288.6,0.10586269]
[1736642392508,0.215,3289.1,3288.6,0.10586269]
[1736642396134,3.30504111,3289.6,3288.8,0.7726]
[1736642396303,0.214,3289.2,3288.8,0.7726]
[1736642396498,0.214,3289.2,3288.9,0.10555816]
[1736642397502,3.30504111,3289.6,3288.9,0.10555816]
[1736642397702,0.214,3289.5,3288.9,0.10555816]
[1736642397906,0.214,3289.5,3289.0,0.7726]
[1736642398117,0.214,3289.5,3289.1,0.10531244]
[1736642398698,5.47398111,3289.9,3289.1,0.10531244]
[1736642398911,6.02137922,3289.9,3289.1,0.10531244]
[1736642399093,4.66708111,3289.9,3289.2,0.7726]
[1736642399430,2.93451,3290.1,3289.3,0.13556801]
[1736642399630,0.214,3289.8,3289.3,0.13556801]
[1736642401008,2.34184,3289.8,3289.3,0.10516848]
[1736642401429,2.34184,3289.8,3289.2,0.80299935]
[1736642401692,2.34184,3289.8,3289.3,0.10498272]
[1736642401892,2.34184,3289.8,3289.2,0.7726]
[1736642402093,0.7501,3289.6,3289.3,0.10498272]
[1736642402321,0.7501,3289.6,3289.2,0.7726]
[1736642402830,0.7501,3289.6,3289.3,0.10498272]
[1736642403030,0.7501,3289.6,3289.2,0.7726]
[1736642403231,0.214,3289.8,3289.2,0.7726]
[1736642403431,0.214,3289.8,3289.3,0.10498272]
[1736642403823,0.214,3289.8,3289.2,0.7726]
[1736642404010,0.214,3289.8,3289.4,0.10456575]
[1736642404211,0.214,3289.8,3289.2,0.7726]
[1736642404412,0.214,3289.8,3289.5,0.10449378]
[1736642404653,0.214,3289.8,3289.2,0.7726]
[1736642404654,2.3418,3289.8,3289.2,0.7726]
[1736642404818,2.12785,3289.7,3289.6,0.10442182]
[1736642405145,2.12803,3289.5,3288.9,0.7941]
[1736642408776,2.12805,3289.4,3288.9,0.7941]
[1736642409135,2.12811,3289.3,3288.9,0.7941]
[1736642409470,2.53934111,3289.7,3288.9,0.82450212]
[1736642409672,2.12799,3289.5,3288.9,0.82450212]
[1736642409858,2.12788,3289.7,3288.9,0.82450212]
[1736642410057,0.218,3289.6,3289.1,0.7941]
[1736642410257,0.218,3289.6,3289.2,0.03039919]
[1736642410458,2.34592,3289.6,3289.1,0.7941]
[1736642411674,0.218,3289.6,3289.1,0.7941]
[1736642411832,2.34593,3289.6,3289.2,0.10481142]
[1736642415588,2.12799,3289.5,3289.2,0.10481142]
[1736642415944,2.12779,3289.8,3289.3,0.7673]
[1736642416149,2.12779,3289.8,3289.4,0.13514223]
[1736642416150,0.218,3289.8,3289.4,0.13514223]
[1736642416582,2.12774,3289.9,3289.4,0.13514223]
[1736642416761,0.218,3289.8,3289.4,0.13514223]
[1736642417878,2.34574,3289.9,3289.4,0.13514223]
[1736642421294,0.218,3290.0,3289.5,0.8203]
[1736642421452,0.218,3290.0,3289.7,0.8203]
[1736642421855,0.218,3290.0,3289.8,0.10447694]
[1736642422102,2.34566,3290.0,3289.7,0.8203]
[1736642422294,2.12766,3290.0,3289.9,0.10440499]
[1736642422492,2.34553,3290.2,3289.8,0.10447694]
[1736642422652,2.34553,3290.2,3289.9,0.10440499]
[1736642422854,2.34553,3290.2,3289.7,0.8203]
[1736642423053,2.34553,3290.2,3290.0,0.10433304]
[1736642423254,2.34553,3290.2,3289.7,0.8203]
[1736642423487,2.34553,3290.2,3290.1,0.1042611]
[1736642423692,2.34553,3290.2,3289.8,0.03039309]
[1736642423898,2.34553,3290.2,3289.7,6.1903]
[1736642423899,2.34553,3290.2,3290.1,0.1042611]
[1736642424075,2.12759,3290.1,3289.7,6.1903]
[1736642425295,2.12767,3290.0,3289.7,6.1903]
[1736642425591,0.218,3290.2,3289.7,6.1903]
[1736642425750,0.218,3290.2,3289.7,5.37]
[1736642425751,3.29474111,3290.0,3289.7,5.37]
[1736642426293,2.12778,3289.8,3289.7,5.37]
[1736642426716,2.12778,3289.8,3289.2,0.8203]
[1736642426853,2.12803,3289.5,3289.2,0.8203]
[1736642427463,2.12807,3289.4,3289.2,0.8203]
[1736642428400,0.218,3289.5,3289.2,0.8203]
[1736642428612,2.34598,3289.5,3289.2,0.8203]
[1736642430909,0.218,3289.5,3289.2,0.8203]
[1736642431312,2.34588,3289.7,3289.2,0.8203]
[1736642432275,2.12799,3289.5,3289.2,0.8203]
[1736642433097,2.12799,3289.5,3289.0,0.8203]
[1736642436380,2.89711,3289.6,3289.0,0.8203]
[1736642436581,2.12806,3289.4,3289.0,0.8203]
[1736642437614,2.12806,3289.4,3288.7,5.37]
[1736642437615,2.8975,3289.0,3288.7,5.37]
[1736642437816,2.12838,3288.9,3288.7,5.37]
[1736642438379,0.216,3288.8,3288.4,1.999436]
[1736642441818,0.216,3288.8,3288.5,0.10550998]
[1736642443629,0.7679,3289.3,3288.6,0.015]
[1736642443799,0.216,3289.2,3288.8,0.8142]
[1736642444345,0.216,3289.2,3288.9,0.10520428]
[1736642446149,0.216,3289.2,3288.5,1.2059217]
[1736642446327,0.216,3289.2,3289.0,0.10504825]
[1736642446645,0.216,3289.2,3289.1,0.10497626]
[1736642446808,0.216,3289.2,3288.5,1.2059217]
[1736642447008,0.216,3289.2,3289.1,0.10497626]
[1736642447208,0.216,3289.2,3288.5,1.2059217]
[1736642447436,0.216,3289.2,3289.1,0.10497626]
[1736642447631,0.216,3289.2,3288.6,5.37]
[1736642447832,0.216,3289.2,3289.1,0.10497626]
[1736642448023,0.216,3289.2,3288.6,5.37]
[1736642448349,0.216,3289.2,3289.1,0.10497626]
[1736642448520,2.34418,3289.2,3288.6,5.37]
[1736642448720,2.34418,3289.2,3289.1,0.10497626]
[1736642448906,2.34418,3289.2,3288.6,5.37]
[1736642449107,2.34418,3289.2,3289.1,0.10497626]
[1736642449334,2.34418,3289.2,3288.6,5.37]
[1736642449535,2.34418,3289.2,3289.1,0.10497626]
[1736642450050,2.34418,3289.2,3288.6,5.37]
[1736642450241,2.34418,3289.2,3289.1,0.10497626]
[1736642450433,2.34418,3289.2,3288.6,5.37]
[1736642450635,2.34418,3289.2,3289.1,0.10497626]
[1736642450833,2.34418,3289.2,3288.6,5.37]
[1736642451035,2.34418,3289.2,3289.1,0.10510896]
[1736642451235,2.34418,3289.2,3288.6,5.37]
[1736642451422,2.34418,3289.2,3289.1,0.10510896]
[1736642451625,2.34418,3289.2,3288.6,5.37]
[1736642451822,2.34418,3289.2,3289.1,0.10510896]
[1736642452148,2.34418,3289.2,3288.6,5.37]
[1736642452312,2.34418,3289.2,3289.1,0.10510896]
[1736642452515,0.216,3289.2,3288.6,5.37]
[1736642452709,0.216,3289.2,3289.1,0.10510896]
[1736642452907,0.216,3289.2,3288.6,5.37]
[1736642453106,0.216,3289.2,3289.1,0.10516646]
[1736642453652,0.216,3289.2,3288.6,5.37]
[1736642453839,2.12825,3289.1,3288.6,5.37]
[1736642455652,0.216,3289.2,3288.6,5.37]
[1736642455856,0.216,3289.2,3288.6,5.40040447]
[1736642456854,0.216,3289.2,3288.7,0.10545001]
[1736642458615,2.12759,3290.1,3288.9,3.0]
[1736642458828,0.8059,3290.0,3289.1,2.90414]
[1736642459026,0.216,3290.0,3289.3,0.7759]
[1736642459233,0.216,3290.0,3289.4,0.03039661]
[1736642459537,0.216,3290.0,3289.4,0.13532946]
[1736642460220,0.216,3290.0,3289.4,0.10493284]
[1736642460453,0.216,3290.0,3289.4,0.13532947]
[1736642460642,0.216,3290.0,3289.4,0.52509719]
[1736642460844,0.216,3290.0,3289.4,0.55549382]
[1736642461036,0.216,3290.2,3289.7,0.0075]
[1736642461357,0.8304,3290.8,3290.1,0.0075]
[1736642461662,0.216,3290.6,3290.3,0.7575]
[1736642462021,0.216,3290.6,3290.4,0.10372246]
[1736642464359,0.216,3290.6,3290.4,0.13411058]
[1736642464560,0.216,3290.6,3290.4,0.10372246]
[1736642465337,2.12708,3290.9,3290.4,0.10372246]
[1736642465660,0.216,3290.7,3290.4,0.10372246]
[1736642466444,2.34321,3290.7,3290.4,0.10372246]
[1736642466676,2.34321,3290.7,3290.1,5.37]
[1736642466973,2.34321,3290.7,3290.2,0.03038962]
[1736642467675,2.34321,3290.7,3290.1,5.37]
[1736642468467,0.216,3290.7,3290.2,0.03038963]
[1736642468769,0.214,3290.6,3290.2,0.03038963]
[1736642470186,0.214,3290.6,3290.1,5.37]
[1736642470470,0.214,3290.6,3290.2,0.03038963]
[1736642470668,0.214,3290.6,3290.1,5.37]
[1736642470878,0.214,3290.6,3290.2,0.03038963]
[1736642471880,0.214,3290.6,3290.3,0.10331701]
[1736642472185,0.214,3290.6,3290.2,0.03038963]
[1736642472476,0.214,3290.6,3290.3,0.10284401]
[1736642472652,0.214,3290.6,3290.2,0.03038963]
[1736642472852,0.214,3290.6,3290.4,0.10277208]
[1736642473055,0.214,3290.6,3290.2,0.03038963]
[1736642473354,0.214,3290.6,3290.5,0.10270016]
[1736642473562,0.214,3290.6,3290.2,0.03038963]
[1736642473757,0.214,3290.6,3290.5,0.10270016]
[1736642473971,0.214,3290.6,3290.2,0.03038963]
[1736642474486,0.214,3290.6,3290.3,0.10284401]
[1736642474788,0.214,3290.6,3290.2,0.03038963]
[1736642474948,0.214,3290.6,3290.4,0.10277208]
[1736642475148,0.214,3290.6,3290.3,0.10284401]
[1736642475343,0.214,3290.6,3290.5,0.10270016]
[1736642475580,0.214,3290.6,3290.4,0.10277208]
[1736642475787,0.214,3290.7,3290.5,0.10270016]
[1736642476286,0.214,3290.7,3290.6,0.10262824]
[1736642476451,0.214,3290.7,3290.2,0.05288768]
[1736642476650,0.214,3290.7,3290.6,0.10262824]
[1736642476864,0.214,3290.7,3290.2,0.0225]
[1736642477065,0.214,3290.7,3290.6,0.10262824]
[1736642477267,0.214,3290.7,3290.2,0.0225]
[1736642477554,0.214,3290.7,3290.6,0.10262824]
[1736642478085,0.214,3290.7,3290.3,5.37]
[1736642478278,0.214,3290.7,3290.6,0.10262824]
[1736642478597,0.214,3290.7,3290.3,5.37]
[1736642478791,0.214,3290.7,3290.6,0.10262824]
[1736642478994,5.117,3291.0,3290.4,0.03038767]
[1736642478995,0.214,3290.8,3290.5,0.7864]
[1736642479286,0.214,3290.8,3290.6,0.10262824]
[1736642479478,0.214,3290.8,3290.5,0.7864]
[1736642479678,0.214,3290.8,3290.7,0.10255632]
[1736642479867,0.214,3290.8,3290.5,0.7864]
[1736642480068,0.214,3290.8,3290.7,0.10255632]
[1736642480288,0.214,3290.8,3290.5,0.7864]
[1736642480484,0.214,3290.8,3290.7,0.10255632]
[1736642480692,0.214,3290.8,3290.5,0.7864]
[1736642480892,0.214,3290.8,3290.7,0.10255632]
[1736642481114,0.214,3290.8,3290.5,0.7864]
[1736642481265,0.214,3290.8,3290.7,0.10255632]
[1736642481466,0.214,3290.8,3290.5,0.7864]
[1736642481666,0.214,3290.8,3290.7,0.10255632]
[1736642481979,0.214,3290.8,3290.6,0.10262824]
[1736642482298,0.214,3290.8,3290.5,0.7864]
[1736642482299,0.214,3290.8,3290.7,0.10255632]
[1736642482467,0.214,3290.8,3290.5,0.7864]
[1736642482668,0.214,3290.8,3290.7,0.10248119]
[1736642482864,0.214,3290.8,3290.5,0.7864]
[1736642483264,0.214,3291.0,3290.6,0.11005311]
[1736642483494,0.214,3291.0,3290.6,5.48005311]
[1736642484589,0.214,3291.0,3290.6,5.47255311]
[1736642484779,2.34106,3291.0,3290.6,5.47255311]
[1736642485890,0.214,3290.9,3290.6,5.47255311]
[1736642487864,2.12701,3291.0,3290.6,5.47255311]
[1736642488065,0.214,3290.9,3290.6,5.47255311]
[1736642490000,0.214,3290.9,3290.7,0.0075]
[1736642490201,0.8023,3291.4,3290.7,0.03788705]
[1736642490404,0.214,3291.2,3290.8,0.102343]
[1736642490562,0.214,3291.2,3290.9,0.7627]
[1736642490766,2.12664,3291.6,3290.9,0.7627]
[1736642490968,0.8213,3291.7,3290.9,0.7627]
[1736642490969,2.34069,3291.5,3291.0,0.13258311]
[1736642491311,0.214,3291.5,3291.0,0.10219919]
[1736642491478,2.12684,3291.3,3290.7,0.7702]
[1736642491680,2.34084,3291.3,3291.1,0.10212729]
[1736642491881,2.34084,3291.3,3290.7,0.7702]
[1736642492407,2.34084,3291.3,3290.8,0.13272618]
[1736642492708,0.214,3291.3,3290.8,0.102343]
[1736642493009,0.214,3291.3,3290.8,0.13272618]
[1736642493780,0.214,3291.3,3290.9,0.0225]
[1736642493980,0.214,3291.3,3291.1,0.0075]
[1736642494382,0.214,3291.3,3291.2,0.10170639]
[1736642495573,0.214,3291.3,3291.2,5.47170639]
[1736642496407,0.214,3291.5,3291.2,5.47170639]
[1736642496586,2.12676,3291.4,3291.2,5.47170639]
[1736642497519,2.92751,3291.3,3291.2,5.47170639]
[1736642498312,3.14141,3291.5,3291.2,5.47170639]
[1736642498474,1.0147,3291.5,3291.2,5.47170639]
[1736642498818,2.12675,3291.4,3291.2,5.47170639]
[1736642499975,1.0147,3291.5,3291.2,5.47170639]
[1736642502575,2.12678,3291.4,3291.2,5.47170639]
[1736642503316,2.12681,3291.3,3291.2,5.47170639]
[1736642503527,5.79940211,3291.3,3291.2,5.47170639]
[1736642506329,5.19230211,3291.3,3291.2,5.47170639]
[1736642506527,4.87815111,3291.3,3291.2,5.47170639]
[1736642507537,5.69725111,3291.3,3291.2,0.10170639]
[1736642507832,5.69725111,3291.3,3290.5,0.7894]
[1736642507998,2.12711,3290.9,3290.6,0.08792698]
[1736642508337,2.12715,3290.8,3290.5,0.7894]
[1736642508492,2.12715,3290.8,3290.7,0.08785507]
[1736642508692,2.12715,3290.8,3290.6,0.08792698]
[1736642508991,2.12715,3290.8,3290.7,0.08785507]
[1736642508992,2.94625,3290.8,3290.7,0.08785507]
[1736642509192,2.94625,3290.8,3290.3,6.1594]
[1736642509389,2.94625,3290.8,3290.4,0.0075]
[1736642512317,2.94625,3290.8,3290.3,6.1594]
[1736642513704,4.66658111,3290.7,3290.3,5.37]
[1736642516862,2.12724,3290.7,3290.3,5.37]
[1736642517007,2.12724,3290.7,3290.4,0.08791189]
[1736642517620,0.212,3290.6,3290.4,0.08791189]
[1736642521284,0.212,3290.6,3290.4,0.1183007]
[1736642521579,2.91437,3291.1,3290.4,0.1183007]
[1736642521760,0.212,3291.0,3290.4,0.1183007]
[1736642522328,2.33902,3291.0,3290.4,0.1183007]
[1736642523974,2.33902,3291.0,3290.4,0.08791189]
[1736642524651,4.66667111,3290.5,3290.4,0.08791189]
[1736642524850,4.66667111,3290.5,3290.0,8.71317005]
[1736642524851,2.53934111,3290.5,3290.0,2.53797005]
[1736642525066,5.48143111,3290.1,3290.0,2.53797005]
[1736642525270,6.25093111,3290.1,3290.0,2.53797005]
[1736642525804,6.25093111,3290.1,3289.8,3.17246256]
[1736642525805,2.12772,3289.9,3289.8,0.13276261]
[1736642525940,2.12772,3289.9,3289.0,2.61e-06]
[1736642525941,2.94274,3289.1,3289.0,2.61e-06]
[1736642526148,3.15474,3289.1,3289.0,2.61e-06]
[1736642526590,3.15474,3289.1,3288.7,3.80695507]
[1736642526767,3.15474,3289.1,3288.4,0.83560705]
[1736642528360,0.212,3289.1,3288.5,0.0075]
[1736642528561,0.212,3289.1,3288.6,0.03040341]
[1736642531455,0.212,3289.1,3288.5,5.3775]
[1736642531652,0.212,3289.1,3288.6,0.06773552]
[1736642532879,2.34025,3289.1,3288.6,0.06773552]
[1736642533082,0.212,3289.1,3288.6,0.09813963]
[1736642533397,0.212,3289.1,3288.6,0.06773552]
[1736642533556,0.212,3289.1,3288.6,0.09813963]
[1736642533756,0.212,3289.1,3288.6,0.47151379]
[1736642535798,2.34024,3289.1,3288.6,0.47151379]
[1736642536003,2.34024,3289.1,3288.6,0.06773552]
[1736642536159,2.34024,3289.1,3288.6,0.09813965]